bitfinex-derivatives/quotes_ETHF0:USTF0_20241005
["timestamp","ask_amount","ask_price","bid_price","bid_amount"]
[1728155576453,1.35,2397.8,2397.7,0.70403]
[1728155576747,1.35,2397.8,2397.7,0.8311]
[1728155577248,1.35,2397.8,2397.7,1.12303]
[1728155579447,2.1806,2398.0,2397.7,5.0015]
[1728155579654,3.40449,2398.0,2397.8,3.49971]
[1728155580444,3.40449,2398.0,2397.8,3.2078]
[1728155581949,0.29189,2398.0,2397.8,3.49971]
[1728155582148,0.29189,2398.1,2397.8,4.84971]
[1728155582352,1.3599,2398.2,2397.9,5.85145888]
[1728155582646,0.932,2398.2,2398.1,3.49968]
[1728155582855,2.45515,2398.3,2398.1,3.2078]
[1728155583046,2.1633,2398.3,2398.1,3.49967]
[1728155583351,2.7099,2398.5,2398.1,3.6099]
[1728155583653,0.29186,2398.3,2398.1,4.0196]
[1728155584250,0.29185,2398.4,2398.1,4.31147]
[1728155586746,3.5122,2398.5,2398.1,4.0196]
[1728155586747,0.29186,2398.3,2398.1,4.0196]
[1728155587152,0.29186,2398.3,2398.1,4.31148]
[1728155588748,3.80404,2398.5,2398.2,0.29186]
[1728155588956,0.29185,2398.4,2398.1,4.31147]
[1728155589346,0.29184,2398.4,2398.1,4.31147]
[1728155590858,3.80403,2398.5,2398.2,0.29186]
[1728155591155,0.29184,2398.4,2398.2,0.29186]
[1728155591950,0.29184,2398.4,2398.3,3.2078]
[1728155592861,2.5802,2398.5,2398.3,3.49965]
[1728155593357,2.1718,2398.5,2398.3,3.49965]
[1728155593546,2.1718,2398.5,2398.4,0.4111]
[1728155594155,2.46363,2398.5,2398.4,0.4111]
[1728155594364,1.35,2398.6,2398.4,0.70294]
[1728155594752,1.35,2398.6,2398.4,1.09274]
[1728155594953,1.64182,2398.6,2398.4,1.09274]
[1728155595757,1.35,2398.6,2398.4,1.09274]
[1728155596556,1.64182,2398.6,2398.4,1.09274]
[1728155597260,1.64182,2398.6,2398.5,4.63804277]
[1728155598552,1.35,2398.6,2398.5,4.63804277]
[1728155598971,1.64182,2398.6,2398.5,4.63804277]
[1728155599664,1.35,2398.6,2398.5,4.63804277]
[1728155600163,1.64182,2398.6,2398.5,4.63804277]
[1728155602163,1.64182,2398.6,2398.5,7.84584277]
[1728155603260,1.35,2398.6,2398.5,7.84584277]
[1728155603462,1.64182,2398.6,2398.5,7.84584277]
[1728155604163,1.35,2398.6,2398.5,4.63804277]
[1728155605957,0.4138,2398.8,2398.6,0.29182]
[1728155606158,0.3906,2399.0,2398.7,4.9544]
[1728155606353,0.3906,2399.0,2398.9,0.29178]
[1728155606566,0.3906,2399.0,2398.8,0.29179]
[1728155606763,0.68237,2399.0,2398.8,0.29179]
[1728155606966,0.3906,2399.0,2398.9,4.67905285]
[1728155611369,0.3906,2399.0,2398.9,7.88685285]
[1728155612472,0.3906,2399.0,2398.9,8.17863285]
[1728155613174,0.3906,2399.0,2398.9,7.88685285]
[1728155614375,0.3906,2399.0,2398.9,4.67905285]
[1728155614670,0.3906,2399.0,2398.9,7.88685285]
[1728155615369,0.3906,2399.0,2398.9,4.67905285]
[1728155615575,0.3906,2399.0,2398.9,7.88685285]
[1728155617573,0.3906,2399.0,2398.9,8.17863285]
[1728155618173,0.3906,2399.0,2398.9,4.97083285]
[1728155618476,0.3906,2399.0,2398.9,7.88685285]
[1728155618777,0.3906,2399.0,2398.9,4.67905285]
[1728155619978,0.3906,2399.0,2398.9,7.88685285]
[1728155620181,0.3906,2399.0,2398.9,4.67905285]
[1728155620576,0.3906,2399.0,2398.9,7.88685285]
[1728155621277,0.29179,2398.8,2398.7,1.08894054]
[1728155621578,1.64179,2398.8,2398.7,1.08894054]
[1728155622976,1.64179,2398.8,2398.6,0.29181]
[1728155623170,0.7941,2398.7,2398.6,1.38075054]
[1728155623370,0.7941,2398.7,2398.6,0.29181]
[1728155623371,0.16849327,2398.7,2398.6,0.29181]
[1728155623582,0.16849327,2398.7,2398.6,1.38075054]
[1728155623976,0.16849327,2398.7,2398.6,1.80315054]
[1728155624479,0.16849327,2398.7,2398.6,3.45966246]
[1728155624677,0.16849327,2398.7,2398.6,3.88846246]
[1728155625072,0.16849327,2398.7,2398.6,2.23195054]
[1728155625283,0.16849327,2398.7,2398.6,4.43293016]
[1728155625481,0.29179,2398.9,2398.6,4.43293016]
[1728155625681,0.68237,2399.0,2398.8,0.29179]
[1728155626689,0.4021,2398.9,2398.8,0.29179]
[1728155627385,0.932,2399.2,2398.8,5.64856053]
[1728155627386,1.22375,2399.2,2398.8,5.64856053]
[1728155627589,1.22375,2399.2,2399.0,0.29177]
[1728155627784,2.5396,2399.3,2398.9,1.51976053]
[1728155627989,3.4716,2399.3,2398.9,6.23081809]
[1728155628186,0.29174,2399.2,2399.0,0.4295]
[1728155628885,0.29176,2399.1,2399.0,0.4295]
[1728155630281,3.4716,2399.3,2399.0,0.4295]
[1728155630488,0.29175,2399.2,2399.0,0.4295]
[1728155631391,0.29176,2399.1,2399.0,0.4295]
[1728155631994,0.29176,2399.1,2399.0,1.52026053]
[1728155632691,0.29176,2399.1,2399.0,0.4295]
[1728155633989,3.4716,2399.3,2399.0,1.81202053]
[1728155633990,0.29175,2399.2,2399.0,1.81202053]
[1728155634988,0.29175,2399.2,2399.0,1.52026053]
[1728155635191,3.4716,2399.3,2399.0,1.52026053]
[1728155635392,0.29176,2399.1,2399.0,1.52026053]
[1728155636091,3.4716,2399.3,2399.0,1.52026053]
[1728155636394,0.29175,2399.2,2399.0,1.81202053]
[1728155638293,0.29175,2399.2,2399.0,1.52026053]
[1728155638697,0.29175,2399.2,2399.0,1.81203053]
[1728155639401,1.64176,2399.1,2399.0,1.52026053]
[1728155639593,1.64176,2399.1,2399.0,1.09076053]
[1728155640794,0.29177,2399.0,2398.9,4.29856053]
[1728155640997,6.23127,2399.0,2398.9,3.2078]
[1728155642895,0.29179,2398.8,2398.7,1.09076053]
[1728155643290,0.29179,2398.8,2398.7,2.75854311]
[1728155645307,1.07879,2398.9,2398.7,3.30392338]
[1728155645506,1.07879,2398.9,2398.8,1.09199485]
[1728155649406,1.07879,2398.9,2398.8,2.76091719]
[1728155650299,1.07879,2398.9,2398.8,3.30506314]
[1728155650500,1.07879,2398.9,2398.8,2.76163287]
[1728155652099,1.07879,2398.9,2398.8,3.30506314]
[1728155652602,1.07879,2398.9,2398.8,1.66892234]
[1728155653103,1.07879,2398.9,2398.8,2.76174832]
[1728155655204,1.07879,2398.9,2398.8,2.76212714]
[1728155655700,1.07879,2398.9,2398.8,1.09282598]
[1728155655903,1.07879,2398.9,2398.8,2.76211613]
[1728155656495,1.07879,2398.9,2398.8,1.09282598]
[1728155656693,1.07879,2398.9,2398.8,2.76212196]
[1728155657805,1.07879,2398.9,2398.8,1.09282598]
[1728155661706,1.07879,2398.9,2398.8,2.7620513]
[1728155661901,1.07879,2398.9,2398.8,1.09282598]
[1728155665707,1.07879,2398.9,2398.7,1.09282598]
[1728155665708,0.787,2398.9,2398.7,1.09282598]
[1728155665903,0.787,2398.9,2398.7,1.0927871]
[1728155666104,0.29179,2398.8,2398.7,1.0927871]
[1728155666313,0.29179,2398.8,2398.7,2.76205362]
[1728155666913,0.29179,2398.8,2398.7,3.17395362]
[1728155670116,0.29179,2398.8,2398.7,3.17393198]
[1728155675016,0.29179,2398.8,2398.7,3.17395859]
[1728155677714,0.29179,2398.8,2398.7,3.17408023]
[1728155678716,0.29179,2398.8,2398.7,3.71743393]
[1728155680215,0.29179,2398.8,2398.7,3.71771105]
[1728155680618,0.29179,2398.8,2398.7,4.10711105]
[1728155680913,0.29175,2399.2,2399.0,0.29177]
[1728155681111,0.29175,2399.2,2399.1,4.51531208]
[1728155684119,0.29175,2399.2,2399.1,2.8757967]
[1728155684321,0.29175,2399.2,2399.1,4.51486995]
[1728155685026,0.29175,2399.2,2399.1,4.51462822]
[1728155689731,1.3456,2399.4,2399.1,4.51462822]
[1728155689732,0.411,2399.5,2399.1,4.51462822]
[1728155689934,1.342,2399.5,2399.2,2.76084019]
[1728155690129,2.07129,2399.5,2399.2,1.09224389]
[1728155690323,0.29173,2399.3,2399.2,1.09224389]
[1728155691322,1.342,2399.5,2399.2,1.09224389]
[1728155691836,0.29173,2399.4,2399.2,4.30004389]
[1728155692636,0.29173,2399.3,2399.2,4.30004389]
[1728155693133,0.29172,2399.4,2399.2,4.30004389]
[1728155693526,1.342,2399.5,2399.2,4.59178389]
[1728155693527,0.70272,2399.5,2399.2,4.59178389]
[1728155693729,0.70272,2399.5,2399.3,1.09224389]
[1728155693937,0.29172,2399.5,2399.3,6.83043658]
[1728155694231,0.29172,2399.5,2399.4,0.4015]
[1728155695429,3.0909,2399.7,2399.4,0.4015]
[1728155695626,0.29171,2399.5,2399.4,0.4015]
[1728155696637,3.0909,2399.7,2399.4,0.4015]
[1728155696638,0.2917,2399.6,2399.4,0.4015]
[1728155696829,0.2917,2399.6,2399.4,1.49374389]
[1728155697027,0.2917,2399.6,2399.5,0.3995]
[1728155701336,3.0909,2399.7,2399.4,0.4015]
[1728155701538,0.4017,2399.5,2399.2,4.30004389]
[1728155701727,0.4017,2399.5,2399.2,3.2078]
[1728155701728,0.29173,2399.3,2399.2,3.2078]
[1728155701926,0.29172,2399.4,2399.2,3.2078]
[1728155702141,0.29172,2399.4,2399.2,4.0211]
[1728155702535,2.04342,2399.5,2399.2,4.31284]
[1728155702736,1.7517,2399.5,2399.2,4.0211]
[1728155702937,0.4017,2399.5,2399.3,0.29172]
[1728155703143,1.10259,2399.7,2399.3,4.65244847]
[1728155703338,1.10259,2399.7,2399.4,0.29172]
[1728155703743,1.10259,2399.7,2399.5,0.4191]
[1728155704148,0.8109,2399.7,2399.5,0.4191]
[1728155704344,0.2917,2399.6,2399.5,0.4191]
[1728155706243,0.2917,2399.6,2399.4,1.64172]
[1728155706244,0.29172,2399.5,2399.3,1.09224389]
[1728155706433,0.29172,2399.4,2399.2,6.78008389]
[1728155706633,0.4096,2399.5,2399.2,6.78008389]
[1728155706634,0.4096,2399.5,2399.3,0.29173]
[1728155706845,0.4096,2399.5,2399.3,1.38397389]
[1728155707138,0.70131,2399.5,2399.3,1.38397389]
[1728155707344,0.70131,2399.5,2399.4,5.73118867]
[1728155707345,0.4096,2399.5,2399.4,5.73118867]
[1728155707748,1.10259,2399.7,2399.4,6.02289867]
[1728155708148,0.2917,2399.6,2399.5,0.3869]
[1728155708853,0.2917,2399.6,2399.4,5.73118867]
[1728155708854,0.29171,2399.5,2399.4,4.38118867]
[1728155709149,0.67891,2399.5,2399.4,4.38118867]
[1728155710747,0.67891,2399.5,2399.3,0.3869]
[1728155710748,0.29172,2399.4,2399.3,0.3869]
[1728155711056,0.3872,2399.5,2399.3,0.3869]
[1728155711350,0.3872,2399.5,2399.4,0.29172]
[1728155711745,0.3872,2399.5,2399.3,1.77086389]
[1728155711945,0.67891,2399.5,2399.3,1.77086389]
[1728155715550,0.67891,2399.5,2399.3,1.47914389]
[1728155716048,0.67891,2399.5,2399.3,1.77087389]
[1728155716253,0.67891,2399.5,2399.3,1.47914389]
[1728155718652,0.29172,2399.4,2399.3,1.47914389]
[1728155718861,0.29172,2399.4,2399.3,1.09224389]
[1728155719555,0.29172,2399.4,2399.3,2.75881501]
[1728155720050,0.29172,2399.4,2399.3,1.09224389]
[1728155720251,0.29172,2399.4,2399.3,2.75908113]
[1728155720953,0.3872,2399.5,2399.2,4.30004389]
[1728155721254,0.68063,2399.3,2399.2,4.29912873]
[1728155721655,0.68063,2399.3,2399.2,3.2078]
[1728155722445,1.09483,2399.3,2399.2,3.2078]
[1728155722644,12.3211,2399.3,2399.0,1.09132873]
[1728155722855,0.29177,2399.0,2398.9,1.09132873]
[1728155723456,0.29176,2399.1,2398.9,1.09132873]
[1728155724146,0.29176,2399.1,2398.9,1.38310873]
[1728155724553,0.29176,2399.1,2398.9,1.09132873]
[1728155724747,0.29176,2399.1,2399.0,1.09132873]
[1728155731760,0.29177,2399.0,2398.9,1.09132873]
[1728155731967,0.29177,2399.0,2398.9,3.30743049]
[1728155732260,0.29177,2399.0,2398.9,1.66835724]
[1728155732461,0.3893,2399.2,2398.9,2.76043018]
[1728155732662,0.3893,2399.2,2398.9,1.09207294]
[1728155732859,0.29176,2399.1,2399.0,1.09207294]
[1728155733261,0.29177,2399.0,2398.9,1.09207294]
[1728155733462,0.29177,2399.0,2398.9,2.76029076]
[1728155735563,0.29177,2399.0,2398.9,1.09207294]
[1728155740657,0.29178,2398.9,2398.8,1.09207294]
[1728155740863,0.69818,2398.9,2398.8,1.09207294]
[1728155741061,0.29179,2398.8,2398.7,4.29987294]
[1728155741267,1.09889,2398.8,2398.7,5.96741349]
[1728155743670,1.09889,2398.8,2398.7,4.29987294]
[1728155743872,0.8071,2398.8,2398.6,1.09207294]
[1728155744067,0.29181,2398.7,2398.6,1.09207294]
[1728155744564,0.8071,2398.8,2398.5,1.51587294]
[1728155744767,0.29182,2398.6,2398.5,1.51587294]
[1728155744964,0.29182,2398.6,2398.5,3.18294965]
[1728155745564,0.29182,2398.6,2398.5,1.51587294]
[1728155746078,0.29182,2398.6,2398.5,1.09207294]
[1728155747472,0.29181,2398.7,2398.5,1.09207294]
[1728155747861,0.29182,2398.6,2398.4,2.73391294]
[1728155748065,0.29182,2398.6,2398.5,1.09207294]
[1728155750573,0.29183,2398.5,2398.4,2.44207294]
[1728155750773,1.53661,2398.8,2398.4,4.10828402]
[1728155750976,1.53661,2398.8,2398.4,2.44207294]
[1728155751468,0.29181,2398.7,2398.4,5.94170294]
[1728155751673,0.29182,2398.6,2398.4,5.94170294]
[1728155751875,0.68352,2398.6,2398.4,5.94170294]
[1728155752474,0.68352,2398.6,2398.4,5.64987294]
[1728155753471,0.2918,2398.8,2398.6,0.29182]
[1728155753673,0.929,2398.9,2398.7,2.5882]
[1728155753975,0.29179,2398.8,2398.7,2.5882]
[1728155754676,1.22079,2398.9,2398.7,2.5882]
[1728155754878,0.69468,2399.0,2398.7,2.88]
[1728155755175,0.29179,2398.9,2398.7,7.17987294]
[1728155755678,0.69468,2399.0,2398.7,7.17987294]
[1728155756671,1.7589,2399.1,2398.9,0.29178]
[1728155756672,1.64226,2399.1,2398.9,0.29178]
[1728155756874,0.71326,2399.1,2399.0,0.3992]
[1728155763775,1.7715,2399.1,2398.9,1.09207294]
[1728155763977,1.7715,2399.1,2398.8,1.09207294]
[1728155763978,0.29178,2398.9,2398.8,1.09207294]
[1728155764176,4.5708,2399.0,2398.6,4.69527294]
[1728155764177,0.29179,2398.8,2398.6,4.69527294]
[1728155764381,0.70469,2398.8,2398.7,1.09207294]
[1728155766076,0.70469,2398.8,2398.7,2.75964451]
[1728155766477,0.70469,2398.8,2398.7,1.66757157]
[1728155766674,0.70469,2398.8,2398.7,2.76033391]
[1728155767587,0.70469,2398.8,2398.7,2.76047613]
[1728155768179,0.70469,2398.8,2398.7,3.30664482]
[1728155769081,0.70469,2398.8,2398.7,1.66757157]
[1728155769478,0.70469,2398.8,2398.7,3.30664482]
[1728155770684,12.22349,2398.8,2398.7,1.09297918]
[1728155770987,11.9317,2398.8,2398.5,1.09297918]
[1728155771295,11.9317,2398.8,2398.3,1.09297918]
[1728155771296,0.29184,2398.4,2398.3,1.09297918]
[1728155771477,0.29185,2398.3,2398.2,1.09297918]
[1728155771678,1.10505,2398.3,2398.2,2.76121213]
[1728155771888,1.49925,2398.3,2398.2,1.09297918]
[1728155774290,0.7925,2398.3,2398.1,1.09297918]
[1728155774594,1.3384,2398.6,2398.3,0.29185]
[1728155774789,0.29183,2398.5,2398.4,0.4078]
[1728155774989,0.29183,2398.5,2398.4,1.92349322]
[1728155776107,0.29183,2398.5,2398.4,0.8314]
[1728155776388,0.29183,2398.5,2398.4,1.92349322]
[1728155777605,0.29183,2398.5,2398.4,3.59023749]
[1728155778892,1.22081,2398.7,2398.4,9.94865752]
[1728155779092,1.22081,2398.7,2398.6,1.09195332]
[1728155779296,0.929,2398.7,2398.6,1.09195332]
[1728155779591,0.29181,2398.7,2398.6,1.09195332]
[1728155780993,0.29178,2398.9,2398.6,4.10876205]
[1728155781189,0.69208,2399.0,2398.7,6.13953135]
[1728155781395,0.69208,2399.0,2398.8,1.51875332]
[1728155781590,0.4003,2399.0,2398.8,1.51875332]
[1728155781799,0.29178,2398.9,2398.8,1.51875332]
[1728155786294,0.29178,2398.9,2398.8,1.09195332]
[1728155786692,0.4003,2399.0,2398.7,1.88155332]
[1728155786888,0.29179,2398.8,2398.7,0.7896]
[1728155787096,0.29179,2398.8,2398.7,4.09582507]
[1728155787901,0.29179,2398.9,2398.7,4.09582507]
[1728155788091,0.29179,2398.9,2398.8,1.09219941]
[1728155791201,0.69208,2399.0,2398.8,1.09219941]
[1728155794410,1.64178,2398.9,2398.8,1.09219941]
[1728155794716,0.29181,2398.7,2398.6,1.09219941]
[1728155794914,0.29182,2398.6,2398.5,1.09219941]
[1728155795114,1.11122,2398.6,2398.5,2.75942843]
[1728155795610,0.8194,2398.6,2398.5,2.75942843]
[1728155795804,0.29179,2398.9,2398.6,0.29181]
[1728155796004,0.29181,2398.7,2398.6,1.09220645]
[1728155796200,0.928,2398.8,2398.6,1.09220645]
[1728155796409,1.52261,2398.7,2398.6,1.09220645]
[1728155799415,1.2308,2398.7,2398.6,1.09220645]
[1728155799613,1.2308,2398.7,2398.6,2.75933742]
[1728155799813,1.2308,2398.7,2398.6,2.7593318]
[1728155800015,1.2308,2398.7,2398.6,1.09220645]
[1728155800414,1.2308,2398.7,2398.6,2.75937614]
[1728155801120,1.2308,2398.7,2398.6,1.09220645]
[1728155801314,1.52261,2398.7,2398.6,1.09220645]
[1728155802021,1.2308,2398.7,2398.6,1.09220645]
[1728155802219,1.52261,2398.7,2398.6,1.09220645]
[1728155802624,2.87261,2398.7,2398.6,1.09220645]
[1728155802918,0.29183,2398.5,2398.4,1.09220645]
[1728155803121,1.64183,2398.5,2398.4,1.09220645]
[1728155803307,1.64183,2398.5,2398.2,1.09220645]
[1728155803308,0.29185,2398.3,2398.2,1.09220645]
[1728155803517,0.29185,2398.3,2398.1,1.09220645]
[1728155803518,0.29187,2398.2,2398.1,1.09220645]
[1728155803717,1.47617,2398.2,2398.1,1.09220645]
[1728155804016,0.29188,2398.1,2398.0,1.09220645]
[1728155805022,0.29188,2398.1,2397.9,1.50510645]
[1728155806730,1.47617,2398.2,2397.9,1.79700645]
[1728155807026,0.7775,2398.2,2398.1,0.29188]
[1728155807418,0.7775,2398.2,2398.0,2.73408645]
[1728155808424,0.7775,2398.2,2398.1,0.29188]
[1728155809318,1.21985,2398.4,2398.1,0.29188]
[1728155809729,0.29186,2398.3,2398.1,0.29188]
[1728155810121,0.29186,2398.3,2398.2,0.4023]
[1728155811923,0.29187,2398.2,2398.1,0.4188]
[1728155812725,0.29187,2398.2,2398.0,0.4023]
[1728155813524,0.29187,2398.2,2397.9,5.00480645]
[1728155813525,0.29189,2398.0,2397.9,4.71290645]
[1728155813728,0.29189,2398.0,2397.9,1.50510645]
[1728155814230,0.29189,2398.0,2397.9,0.4129]
[1728155821026,1.65763,2398.4,2397.9,0.4129]
[1728155821027,0.72963,2398.4,2397.9,0.4129]
[1728155821327,0.72963,2398.4,2398.1,0.29188]
[1728155821328,3.41083,2398.4,2398.1,0.29188]
[1728155821523,0.29186,2398.3,2398.2,0.413]
[1728155821731,0.29186,2398.3,2398.2,0.8337]
[1728155822037,0.29186,2398.3,2398.2,0.4207]
[1728155822331,5.5196,2398.3,2397.8,1.38410645]
[1728155822536,5.5196,2398.3,2397.6,4.39700645]
[1728155822537,0.29193,2397.7,2397.6,4.39700645]
[1728155822726,1.35,2397.8,2397.4,1.91800645]
[1728155822928,0.29196,2397.4,2397.3,1.09220645]
[1728155823126,2.5691,2397.6,2397.3,1.09220645]
[1728155823329,0.29198,2397.3,2397.2,0.8258]
[1728155823829,0.29198,2397.3,2397.2,0.4058]
[1728155824134,1.35,2397.4,2397.0,1.80421645]
[1728155824328,1.35,2397.4,2397.0,0.8258]
[1728155824536,0.292,2397.1,2396.8,4.30000645]
[1728155824732,1.35,2397.2,2396.9,0.29202]
[1728155824733,1.642,2397.2,2396.9,0.29202]
[1728155825035,0.7137,2397.1,2396.9,0.29202]
[1728155827929,0.7987,2397.2,2397.0,0.29201]
[1728155827930,0.69499,2397.2,2397.0,0.29201]
[1728155828328,0.29199,2397.2,2397.1,0.4182]
[1728155829337,3.62388,2397.3,2397.1,0.4182]
[1728155829530,3.3319,2397.3,2397.1,0.4182]
[1728155829730,0.29199,2397.2,2397.1,0.4182]
[1728155829930,3.3319,2397.3,2397.1,0.4182]
[1728155830132,3.62388,2397.3,2397.1,0.4182]
[1728155830932,3.3319,2397.3,2397.1,0.4182]
[1728155831141,1.3313,2397.4,2397.2,0.72059]
[1728155831336,1.3313,2397.4,2397.2,1.12799]
[1728155831637,1.62326,2397.4,2397.2,1.12799]
[1728155831835,2.93,2397.5,2397.3,0.29197]
[1728155832032,1.10674,2397.6,2397.3,0.29197]
[1728155832033,2.03474,2397.6,2397.3,0.29197]
[1728155832432,0.29196,2397.5,2397.2,4.33578]
[1728155833131,0.29195,2397.5,2397.2,4.33578]
[1728155833538,0.29196,2397.4,2397.2,4.33578]
[1728155833940,0.29196,2397.4,2397.2,1.12798]
[1728155834243,0.29196,2397.4,2397.2,4.33578]
[1728155835034,1.7428,2397.6,2397.2,4.33578]
[1728155835035,3.3401,2397.7,2397.2,4.0438]
[1728155835232,0.29196,2397.4,2397.2,4.0438]
[1728155835839,1.3526,2397.6,2397.2,4.0438]
[1728155836041,0.68188,2397.3,2397.2,3.6364]
[1728155837129,0.3899,2397.3,2397.2,3.6364]
[1728155837329,0.3899,2397.3,2397.2,3.92839]
[1728155837742,0.3899,2397.3,2397.2,3.6364]
[1728155840040,0.3899,2397.3,2397.2,3.92839]
[1728155840946,0.3899,2397.3,2397.2,3.6364]
[1728155841536,0.68188,2397.3,2397.2,3.6364]
[1728155841932,0.3899,2397.3,2397.2,3.6364]
[1728155842139,0.68188,2397.3,2397.2,0.4286]
[1728155842535,0.29199,2397.2,2396.9,3.59682]
[1728155842740,0.292,2397.1,2396.9,3.619]
[1728155842939,0.4294,2397.0,2396.9,3.619]
[1728155843346,0.4294,2397.0,2396.9,12.28324593]
[1728155844542,0.72141,2397.0,2396.9,3.2078]
[1728155848846,0.4294,2397.0,2396.9,3.2078]
[1728155849651,1.7794,2397.0,2396.9,3.2078]
[1728155851553,1.7794,2397.0,2396.8,0.72024]
[1728155851850,0.3884,2396.9,2396.8,0.72024]
[1728155857148,0.3884,2396.9,2396.8,1.81244645]
[1728155858254,1.7794,2397.0,2396.9,0.37546]
[1728155860462,0.4164,2397.2,2396.8,6.07820645]
[1728155860660,3.2078,2397.6,2396.9,5.6761843]
[1728155860661,3.4898,2397.4,2396.9,5.6761843]
[1728155860952,3.1144,2397.4,2396.9,5.6761843]
[1728155861158,0.3754,2397.3,2397.1,0.37542]
[1728155861358,0.3754,2397.3,2397.2,0.4119]
[1728155861561,0.3754,2397.3,2397.2,0.8251]
[1728155863661,1.7254,2397.3,2397.2,0.8251]
[1728155867049,1.35,2397.3,2397.2,0.8251]
[1728155867254,1.72538,2397.4,2397.2,6.46391645]
[1728155867454,1.72538,2397.4,2397.2,2.29271645]
[1728155867760,1.72538,2397.4,2397.3,1.09220645]
[1728155868562,1.72538,2397.4,2397.3,3.31829992]
[1728155870762,1.72538,2397.4,2397.3,3.31829827]
[1728155871451,1.35,2397.4,2397.3,1.67922502]
[1728155871661,1.35,2397.4,2397.3,3.86524552]
[1728155871863,1.72538,2397.4,2397.3,3.86524552]
[1728155872361,1.72538,2397.4,2397.3,1.67922502]
[1728155872566,0.37537,2397.5,2397.3,3.86524552]
[1728155872761,0.37537,2397.5,2397.4,3.31960597]
[1728155876967,0.37537,2397.5,2397.4,6.52740597]
[1728155877367,1.72536,2397.6,2397.4,6.52740597]
[1728155877566,1.35,2397.6,2397.5,2.77236574]
[1728155877766,1.35,2397.6,2397.5,3.71150597]
[1728155878359,1.72535,2397.6,2397.5,3.71150597]
[1728155878564,1.72535,2397.6,2397.5,2.07112502]
[1728155878770,1.72535,2397.6,2397.5,3.16417488]
[1728155878973,1.72535,2397.6,2397.5,3.71150597]
[1728155879166,1.72535,2397.6,2397.5,2.77226526]
[1728155879965,1.72535,2397.6,2397.5,1.09304024]
[1728155881280,1.72535,2397.6,2397.5,2.77118734]
[1728155881571,1.72535,2397.6,2397.5,1.09304024]
[1728155881762,1.35,2397.6,2397.5,2.7710799]
[1728155882072,1.35,2397.7,2397.5,3.31842061]
[1728155882271,1.35,2397.7,2397.6,1.09279321]
[1728155882463,1.72534,2397.7,2397.6,1.09279321]
[1728155883079,1.35,2397.7,2397.6,1.46814321]
[1728155883372,1.35,2397.7,2397.6,3.57151595]
[1728155883571,1.35,2397.7,2397.6,3.74375369]
[1728155883773,1.35,2397.7,2397.6,3.74368561]
[1728155883977,1.2278,2397.8,2397.6,3.74368561]
[1728155884277,1.2278,2397.8,2397.7,3.31798561]
[1728155884579,0.8116,2397.8,2397.7,3.71098561]
[1728155885174,0.8116,2397.8,2397.7,3.162762]
[1728155885370,0.8116,2397.8,2397.7,3.16272666]
[1728155885674,1.30227,2398.1,2397.8,0.37532]
[1728155885874,3.07267,2398.1,2397.9,1.09209574]
[1728155886077,2.6974,2398.1,2397.9,1.09209574]
[1728155886276,0.37529,2398.0,2397.9,1.09209574]
[1728155886573,2.6974,2398.1,2397.8,1.46740574]
[1728155886574,1.7704,2398.1,2397.8,1.46740574]
[1728155886876,1.7704,2398.1,2397.9,1.46739574]
[1728155887282,1.7704,2398.1,2398.0,0.3966]
[1728155887785,0.4204,2398.1,2398.0,0.3966]
[1728155889084,1.35,2398.2,2398.0,3.6044]
[1728155889382,1.35,2398.2,2398.1,0.4122]
[1728155889582,1.72526,2398.2,2398.1,0.4122]
[1728155889783,1.35,2398.2,2398.1,0.4122]
[1728155890183,1.72526,2398.2,2398.1,0.4122]
[1728155891688,1.72526,2398.2,2398.0,3.6044]
[1728155891884,1.35,2398.2,2398.0,3.2078]
[1728155892088,0.37529,2398.0,2397.8,0.4122]
[1728155892277,0.8367,2397.9,2397.8,0.4122]
[1728155892482,1.266,2397.9,2397.8,0.4122]
[1728155892685,1.266,2397.9,2397.8,9.39055284]
[1728155897791,1.266,2397.9,2397.7,4.68699574]
[1728155897792,1.6413,2397.9,2397.7,4.68699574]
[1728155897979,1.6413,2397.9,2397.7,3.2078]
[1728155897980,2.616,2397.9,2397.7,3.2078]
[1728155898184,2.99131,2397.9,2397.7,3.2078]
[1728155898380,2.616,2397.9,2397.7,3.2078]
[1728155898791,1.266,2397.9,2397.7,3.2078]
[1728155899390,1.64131,2397.9,2397.7,3.2078]
[1728155900393,0.8367,2397.9,2397.8,0.37532]
[1728155900585,0.37528,2398.1,2397.8,0.839]
[1728155900586,1.16478,2398.1,2397.8,0.839]
[1728155901600,1.16478,2398.1,2397.8,4.0468]
[1728155902000,1.16478,2398.1,2397.8,3.6265]
[1728155903698,0.37529,2398.0,2397.8,3.6265]
[1728155903893,2.1395,2398.1,2397.8,3.2078]
[1728155904286,0.37529,2398.0,2397.8,3.2078]
[1728155904999,2.1395,2398.1,2397.8,3.2078]
[1728155905195,0.3753,2397.9,2397.8,3.2078]
[1728155906695,0.3753,2397.9,2397.7,1.50149574]
[1728155907692,2.1395,2398.1,2397.7,1.87682574]
[1728155907693,0.3753,2398.0,2397.7,1.87682574]
[1728155908098,0.3753,2398.0,2397.8,1.09209574]
[1728155908806,0.7895,2398.1,2397.8,1.09209574]
[1728155908807,1.16479,2398.1,2397.8,1.09209574]
[1728155909203,0.37529,2398.0,2397.8,1.09209574]
[1728155909700,1.16478,2398.1,2397.8,1.46741574]
[1728155910408,1.35,2397.9,2397.8,1.09209574]
[1728155910609,0.37532,2397.8,2397.7,1.09209574]
[1728155910799,1.21212,2397.8,2397.7,1.09209574]
[1728155912001,0.37534,2397.7,2397.6,4.29989574]
[1728155912304,0.79524,2397.7,2397.6,3.2078]
[1728155912512,0.79524,2397.7,2397.6,4.29989574]
[1728155913399,0.4199,2397.7,2397.6,4.29989574]
[1728155913598,0.4199,2397.7,2397.6,6.74166799]
[1728155913797,0.4199,2397.7,2397.6,7.16256799]
[1728155914010,0.4292,2397.8,2397.6,7.7108532]